bitfinex/quotes_BTCUSD_20241021
["timestamp","ask_amount","ask_price","bid_price","bid_amount"]
[1729523704930,0.00366821,67117.0,67116.0,0.02312]
[1729523705131,0.00466821,67117.0,67116.0,0.172115]
[1729523705358,0.00166821,67117.0,67116.0,0.00012]
[1729523705570,0.00166821,67117.0,67116.0,0.172115]
[1729523705785,0.00366821,67117.0,67116.0,0.02312]
[1729523706034,0.07766821,67117.0,67116.0,0.172115]
[1729523706288,0.07766821,67117.0,67116.0,0.36649454]
[1729523706491,0.07666821,67117.0,67116.0,0.251015]
[1729523707144,0.07466821,67117.0,67116.0,0.251015]
[1729523707386,0.05423477,67117.0,67116.0,0.54347415]
[1729523707639,9e-05,67125.0,67124.0,0.00012]
[1729523708329,0.149065,67125.0,67124.0,0.00012]
[1729523709030,9e-05,67125.0,67124.0,0.04292]
[1729523709287,9e-05,67125.0,67124.0,0.2115881]
[1729523709999,9e-05,67125.0,67124.0,0.0626101]
[1729523710230,9e-05,67125.0,67124.0,0.04492]
[1729523710692,9e-05,67125.0,67124.0,0.04592]
[1729523710933,9e-05,67125.0,67124.0,0.04292]
[1729523711168,0.002914,67125.0,67124.0,0.04292]
[1729523711602,0.000914,67125.0,67124.0,0.04292]
[1729523711832,0.000914,67125.0,67124.0,0.04392]
[1729523712060,0.000914,67125.0,67124.0,0.04292]
[1729523712288,0.000914,67125.0,67124.0,0.191898]
[1729523712772,0.000914,67125.0,67124.0,0.29356047]
[1729523713000,0.000914,67125.0,67124.0,0.196898]
[1729523713716,0.000914,67125.0,67124.0,0.34685715]
[1729523713934,0.000914,67125.0,67124.0,0.34785715]
[1729523714164,0.000914,67125.0,67124.0,0.34585715]
[1729523714391,0.290506,67137.0,67132.0,0.00012]
[1729523714599,0.22378874,67138.0,67132.0,0.00012]
[1729523714890,0.297902,67137.0,67132.0,0.00012]
[1729523715062,0.148956,67134.0,67132.0,0.00012]
[1729523715282,0.148956,67134.0,67133.0,0.03958767]
[1729523715499,0.148958,67133.0,67132.0,0.00012]
[1729523715706,0.148957,67134.0,67132.0,0.00112]
[1729523716182,0.148958,67133.0,67132.0,0.00112]
[1729523717097,0.148958,67133.0,67132.0,0.00012]
[1729523717796,0.154958,67133.0,67132.0,0.00012]
[1729523718051,0.006,67133.0,67132.0,0.55533002]
[1729523718281,0.002,67140.0,67132.0,0.38167915]
[1729523718482,0.002,67140.0,67139.0,0.172064]
[1729523719408,0.002,67140.0,67139.0,0.02312]
[1729523719873,0.150942,67140.0,67139.0,0.00012]
[1729523720085,0.150942,67140.0,67133.0,0.005]
[1729523720086,0.0179966,67142.0,67141.0,0.00012]
[1729523720550,0.1669346,67142.0,67141.0,0.00012]
[1729523721649,0.0179966,67142.0,67141.0,0.00012]
[1729523721864,0.0189966,67142.0,67141.0,0.00012]
[1729523722600,0.0189966,67142.0,67141.0,0.17206]
[1729523723064,0.0179966,67142.0,67141.0,0.17206]
[1729523723274,0.0179966,67142.0,67141.0,0.32601915]
[1729523723485,0.0189966,67142.0,67141.0,0.32601915]
[1729523723705,0.0189966,67142.0,67141.0,0.4749783]
[1729523723928,0.0179966,67142.0,67141.0,0.4749783]
[1729523724139,0.0179966,67142.0,67141.0,0.32601915]
[1729523724355,0.0179966,67142.0,67141.0,0.33201915]
[1729523724575,0.0179966,67142.0,67141.0,0.41881915]
[1729523725071,0.0179966,67142.0,67141.0,0.40481915]
[1729523725311,0.0179966,67142.0,67141.0,0.41281915]
[1729523725530,0.0179966,67142.0,67141.0,0.5617783]
[1729523725753,0.0179966,67142.0,67141.0,0.6858783]
[1729523725971,0.0179966,67142.0,67141.0,0.53691915]
[1729523726422,0.0179966,67142.0,67141.0,0.54291915]
[1729523726870,0.0179966,67142.0,67141.0,0.53691915]
[1729523727302,0.0179966,67142.0,67141.0,0.54291915]
[1729523727518,0.0179966,67142.0,67141.0,0.6918783]
[1729523727995,0.0179966,67142.0,67141.0,0.6858783]
[1729523728214,0.0179966,67142.0,67141.0,0.57563378]
[1729523728437,0.0179966,67142.0,67141.0,0.54391915]
[1729523729137,0.0179966,67142.0,67141.0,0.53591915]
[1729523729370,0.0179966,67142.0,67141.0,0.57698401]
[1729523729592,0.04405134,67175.0,67160.0,2.85735566]
[1729523729832,0.248895,67161.0,67160.0,2.85735566]
[1729523730960,0.248895,67161.0,67160.0,2.85835566]
[1729523731437,0.24871572,67161.0,67160.0,2.85735566]
[1729523731677,0.24971572,67161.0,67160.0,2.85835566]
[1729523731892,0.24971572,67161.0,67160.0,2.85735566]
[1729523732350,0.25071572,67161.0,67160.0,2.85835566]
[1729523733063,0.002,67161.0,67160.0,2.85835566]
[1729523733301,0.008,67161.0,67160.0,2.85935566]
[1729523733749,0.002,67161.0,67160.0,2.85835566]
[1729523733965,0.102,67161.0,67160.0,2.85835566]
[1729523734211,0.108,67161.0,67160.0,2.85935566]
[1729523734434,0.256895,67161.0,67160.0,2.85935566]
[1729523734658,0.250895,67161.0,67160.0,2.85835566]
[1729523734888,0.26775621,67161.0,67160.0,2.85835566]
[1729523735106,0.26775621,67161.0,67160.0,2.85735566]
[1729523735336,0.27375621,67161.0,67160.0,2.85835566]
[1729523735582,0.27975621,67161.0,67160.0,2.85935566]
[1729523735777,0.27175621,67161.0,67160.0,2.85835566]
[1729523736035,0.27175621,67161.0,67160.0,2.85935566]
[1729523736235,0.27975621,67161.0,67160.0,2.85935566]
[1729523736471,0.27257921,67161.0,67160.0,2.85835566]
[1729523736713,0.17557921,67161.0,67160.0,2.85835566]
[1729523737172,0.17257921,67161.0,67160.0,2.85835566]
[1729523737622,0.16657921,67161.0,67160.0,2.85735566]
[1729523738384,0.17457921,67161.0,67160.0,2.85835566]
[1729523738586,0.49083836,67161.0,67160.0,2.85835566]
[1729523739072,0.49083836,67161.0,67160.0,2.85935566]
[1729523739073,0.49883836,67161.0,67160.0,2.85935566]
[1729523739282,0.43453836,67161.0,67160.0,2.85835566]
[1729523739525,0.42953836,67161.0,67160.0,2.85835566]
[1729523739773,0.43753836,67161.0,67160.0,2.85935566]
[1729523739981,0.42153836,67161.0,67160.0,2.85835566]
[1729523740206,0.41553836,67161.0,67160.0,2.85735566]
[1729523740419,0.42353836,67161.0,67160.0,2.85835566]
[1729523740894,0.43453836,67161.0,67160.0,2.85935566]
[1729523741366,0.42353836,67161.0,67160.0,2.85835566]
[1729523741595,0.41553836,67161.0,67160.0,2.85735566]
[1729523741815,0.43853836,67161.0,67160.0,2.85935566]
[1729523742045,0.42853836,67161.0,67160.0,2.85835566]
[1729523742514,0.50152212,67161.0,67160.0,2.85835566]
[1729523743006,0.66409718,67161.0,67160.0,2.85835566]
[1729523743229,0.58248659,67161.0,67160.0,2.85835566]
[1729523743465,0.66600614,67161.0,67160.0,2.85735566]
[1729523743927,0.67900614,67161.0,67160.0,2.85835566]
[1729523744216,0.53011114,67161.0,67160.0,2.85835566]
[1729523744454,0.66600614,67161.0,67160.0,2.85735566]
[1729523744667,0.75410529,67161.0,67160.0,2.85735566]
[1729523744892,0.76710529,67161.0,67160.0,2.85835566]
[1729523745116,0.75710529,67161.0,67160.0,2.85835566]
[1729523745345,0.75510529,67161.0,67160.0,2.85835566]
[1729523745572,0.66700614,67161.0,67160.0,2.85835566]
[1729523745818,0.65600614,67161.0,67160.0,2.85735566]
[1729523746076,0.97728915,67161.0,67160.0,1.87307806]
[1729523746313,0.97728915,67161.0,67160.0,1.55300112]
[1729523746558,1.28286244,67161.0,67160.0,1.31928747]
[1729523746786,1.09690614,67161.0,67160.0,1.16438747]
[1729523747005,5.05424957,67161.0,67160.0,1.16338747]
[1729523747254,5.30125457,67161.0,67160.0,0.92616747]
[1729523747481,5.30125457,67161.0,67160.0,0.50727048]
[1729523747482,5.16358128,67161.0,67160.0,0.50727048]
[1729523747717,5.16358128,67161.0,67160.0,0.40475048]
[1729523747992,5.15258128,67161.0,67160.0,0.28563048]
[1729523748236,5.16358128,67161.0,67160.0,0.28563048]
[1729523748476,3.50313128,67161.0,67160.0,0.10002]
[1729523748734,0.767,67147.0,67146.0,0.22378874]
[1729523748978,0.165942,67140.0,67139.0,0.22378874]
[1729523749231,0.62346893,67140.0,67139.0,0.22378874]
[1729523749458,0.62346893,67140.0,67132.0,0.22543474]
[1729523749459,0.26576777,67133.0,67132.0,0.22543474]
[1729523749689,1.0133139,67133.0,67132.0,0.22543474]
[1729523750167,1.0133139,67133.0,67132.0,0.001646]
[1729523750168,1.02974477,67133.0,67132.0,0.001646]
[1729523750392,0.96368373,67133.0,67132.0,0.001646]
[1729523751571,0.97568373,67133.0,67132.0,0.001646]
[1729523752487,0.98668373,67133.0,67132.0,0.002646]
[1729523752712,0.99575316,67133.0,67132.0,0.002646]
[1729523753643,0.99394339,67133.0,67132.0,0.002646]
[1729523753861,1.03795971,67133.0,67132.0,0.002646]
[1729523754320,1.03976948,67133.0,67132.0,0.002646]
[1729523754542,1.03976948,67133.0,67132.0,1.002646]
[1729523755017,0.99575316,67133.0,67132.0,1.002646]
[1729523755256,1.03975801,67133.0,67132.0,1.002646]
[1729523755492,1.03975161,67133.0,67132.0,1.002646]
[1729523756464,0.99575316,67133.0,67132.0,1.002646]
[1729523756716,2.90825083,67133.0,67132.0,0.39813504]
[1729523756996,4.07611027,67133.0,67132.0,0.33855104]
[1729523757234,3.93675316,67133.0,67132.0,0.15188943]
[1729523757468,6.70145928,67133.0,67132.0,0.15188943]
[1729523757708,4.43828528,67133.0,67132.0,0.06251343]
[1729523757944,4.35593828,67133.0,67132.0,0.00292943]
[1729523758180,4.39999773,67133.0,67132.0,0.00292943]
[1729523758406,4.30110528,67133.0,67132.0,0.00292943]
[1729523758659,3.91634028,67133.0,67132.0,0.00292943]
[1729523758898,4.06753933,67133.0,67132.0,0.00292943]
[1729523759126,4.07853972,67133.0,67132.0,0.00292943]
[1729523759350,3.93191484,67133.0,67132.0,0.00457943]
[1729523759569,3.92091484,67133.0,67132.0,0.00457943]
[1729523759788,3.90891484,67133.0,67132.0,0.00457943]
[1729523760031,3.93191484,67133.0,67132.0,0.00457943]
[1729523760252,0.01680977,67125.0,67123.0,0.22378874]
[1729523760497,0.41474392,67125.0,67123.0,0.22378874]
[1729523760990,0.41474392,67125.0,67116.0,0.22378874]
[1729523760991,0.43104009,67125.0,67116.0,0.22378874]
[1729523762168,0.44204009,67125.0,67116.0,0.22378874]
[1729523762838,0.43104009,67125.0,67116.0,0.22378874]
[1729523763352,0.44304009,67125.0,67116.0,0.22378874]
[1729523763604,0.44304009,67125.0,67109.0,0.22378874]
[1729523763821,0.48698015,67125.0,67109.0,0.22378874]
[1729523764066,1.24235968,67125.0,67124.0,1e-06]
[1729523764308,1.24235968,67125.0,67110.0,0.22378874]
[1729523764309,0.16581577,67111.0,67110.0,0.22378874]
[1729523764554,0.94730086,67111.0,67110.0,0.22378874]
[1729523764783,0.96348662,67111.0,67110.0,0.22378874]
[1729523765031,0.164022,67104.0,67103.0,0.22378874]
[1729523765292,0.39798115,67104.0,67103.0,0.22378874]
[1729523765496,0.249026,67102.0,67101.0,0.0805]
[1729523765726,0.39798515,67102.0,67101.0,0.0805]
[1729523766172,0.41417091,67102.0,67101.0,0.0805]
[1729523767595,0.42617091,67102.0,67101.0,0.0805]
[1729523768172,0.03918576,67102.0,67101.0,0.0805]
[1729523768175,0.03918576,67102.0,67101.0,0.357949]
[1729523768176,0.011,67102.0,67101.0,0.357949]
[1729523768549,0.297961,67123.0,67113.0,0.1878]
[1729523768776,0.52672774,67128.0,67113.0,0.1878]
[1729523768777,0.148983,67122.0,67117.0,0.00019023]
[1729523768998,0.52172774,67128.0,67117.0,0.00019023]
[1729523768999,0.148975,67125.0,67117.0,0.00019023]
[1729523769245,0.148976,67125.0,67117.0,0.00019023]
[1729523769467,0.14895915,67125.0,67117.0,0.00019023]
[1729523769746,0.14895915,67125.0,67119.0,0.148988]
[1729523769985,0.297911,67134.0,67123.0,0.0781]
[1729523770242,0.22378874,67133.0,67130.0,0.00012]
[1729523770459,0.22378874,67133.0,67124.0,0.1101]
[1729523770460,0.22478874,67133.0,67124.0,0.1101]
[1729523770696,0.005,67136.0,67124.0,0.1101]
[1729523770926,0.148968,67129.0,67125.0,0.22378874]
[1729523771153,0.148968,67129.0,67124.0,0.1101]
[1729523771625,0.297928,67131.0,67124.0,0.1101]
[1729523771626,0.148962,67131.0,67130.0,0.001]
[1729523772071,0.148974,67126.0,67124.0,0.1101]
[1729523772305,0.148969,67128.0,67125.0,0.001]
[1729523772519,0.008,67129.0,67125.0,0.001]
[1729523772954,0.297938,67128.0,67125.0,0.001]
[1729523773183,0.148973,67126.0,67125.0,0.001]
[1729523773403,0.148973,67126.0,67124.0,0.1101]
[1729523773642,0.30792815,67128.0,67124.0,0.1101]
[1729523774099,0.15895915,67128.0,67124.0,0.1101]
[1729523774324,0.29792815,67128.0,67124.0,0.1101]
[1729523774555,0.008,67126.0,67124.0,0.1101]
[1729523774784,0.014,67126.0,67124.0,0.1111]
[1729523775028,0.014,67126.0,67124.0,0.1101]
[1729523775029,0.148975,67125.0,67124.0,0.1101]
[1729523775275,0.148975,67125.0,67124.0,0.1111]
[1729523775500,0.39793415,67125.0,67124.0,0.001]
[1729523775715,0.39974392,67125.0,67124.0,0.001]
[1729523775950,0.41125565,67125.0,67124.0,0.001]
[1729523776230,0.40944588,67125.0,67124.0,0.001]
[1729523776676,0.26047088,67125.0,67114.0,0.00019023]
[1729523776903,0.01151173,67125.0,67119.0,0.00012]
[1729523777122,0.01151173,67125.0,67124.0,0.001]
[1729523777360,0.32378874,67129.0,67122.0,0.148981]
[1729523777594,0.03348637,67125.0,67124.0,0.001]
[1729523777856,0.022,67125.0,67124.0,0.00119023]
[1729523778095,0.01,67125.0,67124.0,0.30828823]
[1729523778378,0.22378874,67149.0,67132.0,0.38537023]
[1729523778619,0.37271174,67149.0,67132.0,0.38537023]
[1729523778853,0.148927,67147.0,67132.0,0.39037023]
[1729523779077,0.37271174,67149.0,67132.0,0.39037023]
[1729523779544,0.297852,67148.0,67132.0,0.38537023]
[1729523779770,0.67060774,67142.0,67132.0,0.36218]
[1729523779999,0.1,67147.0,67132.0,0.38537023]
[1729523780215,0.22378874,67141.0,67132.0,0.38537023]
[1729523780650,0.001826,67133.0,67132.0,0.39637023]
[1729523780865,0.002826,67133.0,67132.0,0.38537023]
[1729523781310,0.000826,67133.0,67132.0,0.38637023]
[1729523781526,0.001826,67133.0,67132.0,0.38537023]
[1729523781983,0.001826,67133.0,67132.0,0.39437023]
[1729523782894,0.000826,67133.0,67132.0,0.39437023]
[1729523783111,0.002826,67133.0,67132.0,0.21322]
[1729523783342,0.002826,67133.0,67132.0,0.36218]
[1729523783574,0.003826,67133.0,67132.0,0.36937023]
[1729523783802,0.000826,67133.0,67132.0,0.36237023]
[1729523784251,0.000826,67133.0,67132.0,0.36337023]
[1729523784460,0.000826,67133.0,67132.0,0.36237023]
[1729523784912,0.000826,67133.0,67132.0,0.21322]
[1729523785189,0.14978515,67133.0,67132.0,0.2151]
[1729523785427,0.29874315,67133.0,67132.0,0.002]
[1729523785663,0.31043295,67133.0,67132.0,0.002]
[1729523786124,0.0135158,67133.0,67131.0,0.00019023]
[1729523786341,0.0135158,67133.0,67130.0,0.00019023]
[1729523786574,0.0125158,67133.0,67132.0,0.002]
[1729523786815,0.0125158,67133.0,67131.0,0.14915223]
[1729523787037,0.0245158,67133.0,67132.0,0.14908]
[1729523787277,0.0245158,67133.0,67132.0,0.39077023]
[1729523787278,0.0325158,67133.0,67132.0,0.39077023]
[1729523787498,0.000826,67133.0,67132.0,0.38977023]
[1729523787723,0.006826,67133.0,67132.0,0.38977023]
[1729523787942,0.009826,67133.0,67132.0,0.36677023]
[1729523788159,0.006826,67133.0,67132.0,0.36677023]
[1729523789088,0.000826,67133.0,67132.0,0.36658]
[1729523789314,0.000826,67133.0,67132.0,0.21762]
[1729523789737,0.01252468,67133.0,67132.0,0.21762]
[1729523789973,0.000826,67133.0,67132.0,0.36958]
[1729523790649,0.000826,67133.0,67132.0,0.36658]
[1729523791118,0.000826,67133.0,67132.0,0.38977023]
[1729523792050,0.22378874,67148.0,67147.0,0.148926]
[1729523792314,0.22378874,67148.0,67147.0,0.20532]
[1729523792540,0.22378874,67148.0,67147.0,0.354246]
[1729523792782,0.148921,67150.0,67147.0,0.20532]
[1729523793030,0.297816,67156.0,67148.0,0.00012]
[1729523793260,0.29786915,67155.0,67149.0,0.148922]
[1729523793479,0.248913,67154.0,67148.0,0.00012]
[1729523793700,0.248913,67154.0,67148.0,0.149043]
[1729523793913,0.1,67154.0,67148.0,0.00012]
[1729523794161,0.006,67150.0,67149.0,0.148922]
[1729523794384,0.248911,67154.0,67148.0,0.00012]
[1729523794606,0.297818,67156.0,67148.0,0.00012]
[1729523794607,0.258911,67155.0,67149.0,0.148921]
[1729523794830,0.11,67155.0,67149.0,0.297842]
[1729523795046,0.11,67155.0,67152.0,0.00019023]
[1729523795277,0.01170881,67154.0,67151.0,0.14910723]
[1729523795529,0.01170881,67154.0,67151.0,0.00019023]
[1729523795736,0.01770881,67154.0,67151.0,0.00019023]
[1729523795957,0.01170881,67154.0,67151.0,0.00019023]
[1729523796188,0.01170881,67154.0,67150.0,0.00019023]
[1729523796421,0.148913,67153.0,67152.0,0.001]
[1729523796881,0.148916,67152.0,67148.0,0.00012]
[1729523797386,0.115,67154.0,67148.0,0.00012]
[1729523797616,0.01170881,67151.0,67148.0,0.00012]
[1729523797853,0.148919,67151.0,67148.0,0.00012]
[1729523798101,0.14892,67150.0,67148.0,0.00012]
[1729523798323,0.16074247,67150.0,67148.0,0.00012]
[1729523798552,0.16074247,67150.0,67149.0,0.00012]
[1729523799303,0.01182247,67150.0,67149.0,0.00012]
[1729523799561,0.148924,67148.0,67147.0,0.2052]
[1729523799800,0.14895915,67148.0,67143.0,0.00012]
[1729523800032,0.29788715,67147.0,67143.0,0.00012]
[1729523800256,0.148926,67148.0,67144.0,0.22378874]
[1729523800470,0.148923,67149.0,67146.0,0.00012]
[1729523800696,0.30788015,67150.0,67146.0,0.00012]
[1729523800915,0.005,67148.0,67146.0,0.00012]
[1729523801616,0.005,67148.0,67147.0,0.149046]
[1729523801907,0.005,67148.0,67147.0,0.14923623]
[1729523802098,0.005,67148.0,67147.0,0.28013623]
[1729523802584,0.148905,67157.0,67152.0,0.148915]
[1729523802809,0.148907,67156.0,67153.0,0.00012]
[1729523803028,0.148907,67156.0,67155.0,0.00019023]
[1729523803257,0.148907,67156.0,67153.0,0.00012]
[1729523803258,0.297814,67156.0,67153.0,0.00012]
[1729523803475,0.148909,67155.0,67153.0,0.00012]
[1729523803954,0.148911,67154.0,67153.0,0.00012]
[1729523804190,0.148911,67155.0,67153.0,0.00012]
[1729523804425,0.317814,67156.0,67153.0,0.00012]
[1729523804653,0.148911,67154.0,67153.0,0.00012]
[1729523804879,0.008,67156.0,67153.0,0.00012]
[1729523805338,0.008,67156.0,67155.0,0.22378874]
[1729523805557,0.008,67156.0,67155.0,0.23201923]
[1729523806032,0.148903,67158.0,67155.0,0.08292]
[1729523806282,0.447513,67161.0,67160.0,0.00012]
[1729523807402,0.149718,67161.0,67160.0,0.00012]
[1729523807613,0.149718,67161.0,67156.0,0.134126]
[1729523807826,0.148898,67160.0,67155.0,0.23189723]
[1729523808043,0.148898,67160.0,67155.0,0.231707]
[1729523808294,0.14895915,67159.0,67148.0,0.0828]
[1729523808522,0.14895915,67159.0,67151.0,0.22378874]
[1729523808737,0.148915,67152.0,67151.0,0.22378874]
[1729523808958,0.148918,67151.0,67148.0,0.0828]
[1729523809173,0.148914,67153.0,67148.0,0.0828]
[1729523809389,0.14892,67151.0,67148.0,0.0828]
[1729523809631,0.297823,67154.0,67148.0,0.0828]
[1729523809866,0.148921,67150.0,67148.0,0.0828]
[1729523810136,0.29788115,67149.0,67148.0,0.0828]
[1729523810349,0.14893,67146.0,67145.0,0.22378874]
[1729523810560,0.297849,67148.0,67145.0,0.22378874]
[1729523810786,0.148927,67147.0,67142.0,0.148936]
[1729523811000,0.148929,67146.0,67142.0,0.148936]
[1729523811227,0.01191286,67147.0,67142.0,0.148936]
[1729523811439,0.148927,67147.0,67142.0,0.148936]
[1729523811623,0.01191286,67145.0,67142.0,0.148936]
[1729523811883,0.148925,67148.0,67143.0,0.148935]
[1729523812103,0.01191286,67146.0,67143.0,0.148935]
[1729523812326,0.01191286,67147.0,67143.0,0.148935]
[1729523812564,0.29788315,67149.0,67141.0,0.29788]
[1729523812769,0.29788315,67149.0,67144.0,0.148933]
[1729523812770,0.01191286,67146.0,67144.0,0.148933]
[1729523812982,0.01191286,67146.0,67143.0,0.297871]
[1729523812983,0.29788215,67149.0,67145.0,0.148931]
[1729523813216,0.01191286,67145.0,67144.0,0.148933]
[1729523813481,0.150928,67147.0,67143.0,0.003]
[1729523813700,0.002,67147.0,67146.0,0.148929]
[1729523813944,0.148909,67155.0,67150.0,0.148919]
[1729523814161,0.004,67149.0,67147.0,0.297853]
[1729523814373,0.004,67149.0,67148.0,0.148924]
[1729523814586,0.148907,67156.0,67151.0,0.148916]
[1729523814886,0.297809,67157.0,67148.0,0.00019023]
[1729523814887,0.14895915,67155.0,67148.0,0.00019023]
[1729523815114,0.14895915,67155.0,67151.0,0.148916]
[1729523815339,0.297827,67153.0,67148.0,0.00019023]
[1729523815554,0.148927,67147.0,67145.0,0.22378874]
[1729523815769,0.148924,67148.0,67145.0,0.22378874]
[1729523815994,0.148924,67148.0,67144.0,0.226433]
[1729523816493,0.29784,67150.0,67144.0,0.0775]
[1729523816709,0.14895915,67149.0,67145.0,0.14893]
[1729523816934,0.29788115,67149.0,67145.0,0.14993]
[1729523817193,0.5957,67148.0,67145.0,0.001]
[1729523817411,0.14895915,67147.0,67145.0,0.001]
[1729523817639,0.19502758,67146.0,67145.0,0.001]
[1729523817874,0.34398673,67146.0,67144.0,0.0775]
[1729523818112,0.14895915,67145.0,67144.0,0.0775]
[1729523819267,0.14895915,67145.0,67144.0,0.0785]
[1729523819489,0.14895915,67145.0,67125.0,0.1341]
[1729523819774,0.14895915,67145.0,67117.0,0.01]
[1729523819775,0.148958,67133.0,67126.0,0.22378874]
[1729523819986,0.2000628,67133.0,67126.0,0.22378874]
[1729523820199,0.45154283,67133.0,67126.0,0.22378874]
[1729523820423,0.47363207,67133.0,67126.0,0.22378874]
[1729523820648,0.36318587,67133.0,67119.0,0.0827]
[1729523820873,0.47363207,67133.0,67119.0,0.0827]
[1729523821181,0.47363207,67133.0,67132.0,0.002652]
[1729523821384,0.2000628,67133.0,67132.0,0.002652]
[1729523821607,0.36322243,67133.0,67132.0,0.002652]
[1729523821825,0.47372207,67133.0,67132.0,0.002652]
[1729523822050,0.61768122,67133.0,67132.0,0.002652]
[1729523822287,0.50717438,67133.0,67132.0,0.002652]
[1729523822517,0.59571392,67133.0,67132.0,0.001652]
[1729523822730,0.60471392,67133.0,67132.0,0.001652]
[1729523822955,0.60973896,67133.0,67132.0,0.001652]
[1729523823176,0.52626616,67133.0,67132.0,0.001652]
[1729523823390,0.52126616,67133.0,67132.0,0.001652]
[1729523823847,0.37230816,67133.0,67132.0,0.001652]
[1729523824057,0.60977393,67133.0,67132.0,0.001652]
[1729523824283,0.60977584,67133.0,67132.0,0.001652]
[1729523824698,0.37230816,67133.0,67132.0,0.00184223]
[1729523824951,0.13627141,67133.0,67132.0,0.232312]
[1729523825196,0.06989342,67133.0,67132.0,0.23250223]
[1729523825442,0.0256402,67133.0,67132.0,0.23250223]
[1729523825885,0.0256402,67133.0,67132.0,0.083352]
[1729523826124,0.31455735,67133.0,67132.0,0.083352]
[1729523826324,0.35380685,67133.0,67132.0,0.083352]
[1729523826540,0.35580685,67133.0,67132.0,0.085352]
[1729523826988,0.20484885,67133.0,67132.0,0.083352]
[1729523827462,0.36780685,67133.0,67132.0,0.083352]
[1729523828112,0.36782197,67133.0,67132.0,0.083352]
[1729523828322,0.36782197,67133.0,67132.0,0.001652]
[1729523828323,0.61374303,67133.0,67132.0,0.001652]
[1729523828535,0.53986529,67133.0,67132.0,0.001652]
[1729523828936,0.53486529,67133.0,67132.0,0.001652]
[1729523829320,0.52586529,67133.0,67132.0,0.001652]
[1729523829519,0.62986529,67133.0,67132.0,0.001652]
[1729523829693,0.62986529,67133.0,67127.0,0.02]
[1729523829694,0.25577877,67128.0,67127.0,0.02]
[1729523829914,0.63584276,67128.0,67127.0,0.02]
[1729523830166,0.93504276,67128.0,67127.0,0.02]
[1729523830388,1.1791687,67128.0,67127.0,0.02]
[1729523831826,1.17835893,67128.0,67127.0,0.02]
[1729523832039,1.17835893,67128.0,67127.0,0.021]
[1729523832040,1.17355893,67128.0,67127.0,0.021]
[1729523832254,1.18555893,67128.0,67127.0,0.021]
[1729523832469,1.17855893,67128.0,67127.0,0.02]
[1729523832698,1.17855893,67128.0,67127.0,0.021]
[1729523832926,1.17555893,67128.0,67127.0,0.021]
[1729523833138,1.29796342,67128.0,67127.0,0.021]
[1729523833351,1.18755893,67128.0,67127.0,0.021]
[1729523833565,0.71810373,67128.0,67127.0,0.021]
[1729523833814,0.21372099,67128.0,67127.0,0.021]
[1729523834058,0.03260667,67128.0,67127.0,0.021]
[1729523834280,0.17298254,67128.0,67127.0,0.001]
[1729523834492,0.02401354,67128.0,67127.0,0.001]
[1729523834954,0.17298254,67128.0,67127.0,0.001]
[1729523835213,0.17298254,67128.0,67120.0,0.0821]
[1729523835214,0.148984,67121.0,67120.0,0.0821]
[1729523835650,0.15851187,67121.0,67120.0,0.0821]
[1729523836607,0.16251187,67121.0,67120.0,0.0821]
[1729523836822,0.01652787,67121.0,67120.0,0.0821]
[1729523837030,0.01252787,67121.0,67120.0,0.0821]
[1729523838148,0.22378874,67130.0,67123.0,0.297957]
[1729523838366,0.22378874,67130.0,67124.0,0.0808]
[1729523838579,0.00954924,67129.0,67124.0,0.0808]
[1729523839265,0.1,67136.0,67124.0,0.0808]
[1729523839482,0.148975,67125.0,67124.0,0.0808]
[1729523839704,0.14897,67128.0,67126.0,0.22378874]
[1729523839927,0.00956512,67125.0,67124.0,0.0818]
[1729523840155,0.446899,67129.0,67124.0,0.0808]
[1729523840424,0.297939,67128.0,67124.0,0.0808]
[1729523840638,0.00960277,67128.0,67125.0,0.22378874]
[1729523840851,0.00960277,67128.0,67127.0,0.00019023]
[1729523841067,0.22378874,67135.0,67127.0,0.00019023]
[1729523841279,0.14895915,67135.0,67127.0,0.00019023]
[1729523841498,0.15855877,67134.0,67127.0,0.00019023]
[1729523841717,0.002,67129.0,67127.0,0.00019023]
[1729523842173,0.012,67136.0,67127.0,0.00019023]
[1729523842174,0.012,67136.0,67135.0,0.148953]
[1729523842424,0.012,67136.0,67135.0,0.17214323]
[1729523842635,0.012,67136.0,67135.0,0.39764323]
[1729523842856,0.22378874,67142.0,67141.0,0.00019023]
[1729523843274,0.148928,67147.0,67139.0,0.00019023]
[1729523843495,0.148929,67146.0,67139.0,0.00019023]
[1729523844040,0.148921,67150.0,67139.0,0.00019023]
[1729523844268,0.22378874,67151.0,67139.0,0.00019023]
[1729523844470,0.148923,67149.0,67139.0,0.00019023]
[1729523844676,0.22378874,67151.0,67141.0,0.023]
[1729523845075,0.148921,67150.0,67141.0,0.023]
[1729523845308,0.148921,67150.0,67139.0,0.17213323]
[1729523845516,0.148921,67150.0,67141.0,0.001]
[1729523845726,0.34207402,67153.0,67142.0,0.30048874]
[1729523845727,0.148913,67153.0,67142.0,0.30048874]
[1729523845929,0.007,67151.0,67143.0,0.0622565]
[1729523846141,0.155918,67151.0,67142.0,0.0767]
[1729523846388,0.297829,67153.0,67142.0,0.0767]
[1729523846389,0.14892,67150.0,67142.0,0.0767]
[1729523846577,0.148921,67150.0,67143.0,0.00019023]
[1729523847004,0.148923,67149.0,67143.0,0.00019023]
[1729523847418,0.29784,67150.0,67143.0,0.00019023]
[1729523847619,0.148925,67148.0,67142.0,0.07689023]
[1729523847744,0.297854,67147.0,67142.0,0.0767]
[1729523848211,0.297845,67149.0,67143.0,0.00019023]
[1729523848425,0.148925,67148.0,67143.0,0.00019023]
[1729523848641,0.009,67150.0,67149.0,0.00019023]
[1729523848867,0.15792,67150.0,67149.0,0.00019023]
[1729523849069,0.04424402,67155.0,67153.0,0.00019023]
[1729523849284,0.000825,67156.0,67153.0,0.00019023]
[1729523849719,0.15691365,67155.0,67149.0,0.13369023]
[1729523849919,0.148912,67154.0,67149.0,0.13369023]
[1729523850124,0.001,67150.0,67149.0,0.13369023]
[1729523850353,0.00900465,67150.0,67149.0,0.13369023]
[1729523850582,0.00800465,67150.0,67149.0,0.13369023]
[1729523850978,0.148912,67154.0,67149.0,0.13369023]
[1729523851197,0.00800465,67150.0,67149.0,0.13369023]